bitfinex/quotes_ETHUSD_20260214
["timestamp","ask_amount","ask_price","bid_price","bid_amount"]
[1771037430465,1.71094615,2050.1,2049.7,0.001]
[1771037430644,2.91082827,2050.0,2049.7,0.001]
[1771037430845,1.71094615,2050.1,2049.7,0.001]
[1771037431064,2.91078583,2050.0,2049.7,0.001]
[1771037431248,1.71094615,2050.1,2049.7,0.001]
[1771037431764,2.91069524,2050.0,2049.7,0.001]
[1771037431964,1.71094615,2050.1,2049.7,0.001]
[1771037432146,2.91085874,2050.0,2049.7,0.001]
[1771037432351,1.71094615,2050.1,2049.7,0.001]
[1771037432663,2.9108421,2050.0,2049.7,0.001]
[1771037432863,1.71094615,2050.1,2049.7,0.001]
[1771037433049,2.9108736,2050.0,2049.7,0.001]
[1771037433251,1.71094615,2050.1,2049.7,0.001]
[1771037433452,2.91080368,2050.0,2049.7,0.001]
[1771037433655,1.71094615,2050.1,2049.7,0.001]
[1771037434172,2.91080448,2050.0,2049.7,0.001]
[1771037434375,1.71094615,2050.1,2049.7,0.001]
[1771037434950,2.91077062,2050.0,2049.7,0.001]
[1771037435155,1.71094615,2050.1,2049.7,0.001]
[1771037435756,2.9107528,2050.0,2049.7,0.001]
[1771037435955,1.71094615,2050.1,2049.7,0.001]
[1771037436272,4.130265,2050.0,2049.7,0.001]
[1771037436475,1.21951665,2050.0,2049.7,0.001]
[1771037449375,1.71093965,2050.1,2049.7,0.001]
[1771037449575,0.0011,2050.3,2049.7,0.43300489]
[1771037449751,0.0011,2050.3,2049.8,2.12200489]
[1771037449953,1.22044075,2050.3,2049.8,2.12200489]
[1771037450957,1.67334296,2050.3,2049.8,1.69]
[1771037451152,0.45290221,2050.2,2049.8,1.69]
[1771037451368,1.67234688,2050.2,2049.7,0.001]
[1771037451681,0.45290221,2050.1,2049.7,1.691]
[1771037453983,1.6723934,2050.1,2049.7,1.691]
[1771037458365,0.45290221,2050.0,2049.7,1.691]
[1771037459781,1.672419,2050.0,2049.7,1.691]
[1771037459988,1.67107438,2050.0,2049.7,1.691]
[1771037460756,1.67107438,2050.0,2049.7,0.001]
[1771037460964,3.36660305,2049.9,2049.7,0.001]
[1771037461269,0.45290221,2049.9,2049.7,0.001]
[1771037461662,1.67249455,2049.9,2049.7,0.001]
[1771037463793,0.45706034,2050.1,2049.7,0.001]
[1771037463990,2.91329451,2050.0,2049.7,0.001]
[1771037464165,2.91329451,2049.9,2049.7,0.001]
[1771037464487,0.45706034,2050.1,2049.7,0.001]
[1771037464692,2.91320352,2050.0,2049.7,0.001]
[1771037464873,2.91320352,2049.9,2049.7,0.001]
[1771037465075,0.45706034,2050.1,2049.7,0.001]
[1771037465971,1.21951219,2050.0,2049.7,0.001]
[1771037469599,1.21942673,2050.2,2049.7,0.001]
[1771037469898,1.67754273,2050.3,2049.7,0.001]
[1771037470280,1.67754273,2050.3,2049.7,0.43434951]
[1771037471193,0.45706034,2050.2,2049.7,0.001]
[1771037473400,0.0011,2050.3,2049.7,1.65404019]
[1771037473785,0.0011,2050.3,2049.8,0.43334951]
[1771037476375,0.0011,2050.3,2050.0,0.43334951]
[1771037477386,0.0011,2050.3,2049.9,2.91257168]
[1771037478090,0.0011,2050.3,2049.9,3.34592119]
[1771037479906,0.0011,2050.3,2049.9,2.91257168]
[1771037480210,0.0011,2050.3,2050.0,0.43334951]
[1771037482199,0.0011,2050.3,2050.1,1.2194527]
[1771037486387,0.0011,2050.3,2050.2,1.706]
[1771037493300,0.0011,2050.3,2050.2,1.51438029]
[1771037493505,0.48424674,2050.3,2050.2,1.51438029]
[1771037495929,0.48424674,2050.3,2049.9,6.21953389]
[1771037495930,0.48424674,2050.3,2049.9,5.0]
[1771037496122,1.70358477,2050.3,2049.9,6.718]
[1771037496725,0.48314674,2050.2,2049.9,6.718]
[1771037498033,0.48314674,2050.2,2049.9,7.93756993]
[1771037498628,0.48180233,2050.2,2049.9,7.93756993]
[1771037500131,0.48180233,2050.2,2049.9,6.718]
[1771037500904,0.48180233,2050.2,2049.9,7.93756792]
[1771037504332,0.48180233,2050.2,2049.9,6.718]
[1771037512946,0.47964314,2050.1,2049.9,6.718]
[1771037513324,0.47964314,2050.1,2049.9,5.0]
[1771037524762,1.22047895,2050.3,2049.9,5.0]
[1771037524962,0.48068052,2050.2,2049.9,5.0]
[1771037526163,0.48068052,2050.1,2049.9,5.0]
[1771037527154,0.48068052,2050.0,2049.7,0.001]
[1771037527965,7.15170282,2050.3,2049.7,1.22067972]
[1771037528170,0.48178052,2050.3,2049.7,1.22067972]
[1771037528342,1.70114587,2050.3,2049.7,1.65537364]
[1771037529766,0.0011,2050.3,2049.7,1.65537364]
[1771037529946,0.0011,2050.3,2049.8,0.43469392]
[1771037530552,0.0011,2050.3,2049.7,1.22067972]
[1771037531267,0.0011,2050.3,2049.7,1.65537364]
[1771037533471,0.48178052,2050.3,2049.7,1.65537364]
[1771037533967,0.0011,2050.3,2049.8,0.43469392]
[1771037534776,0.48178052,2050.3,2049.7,1.22067972]
[1771037535551,1.22044344,2050.3,2049.7,1.22067972]
[1771037535750,0.48068052,2050.2,2049.7,1.22067972]
[1771037543378,1.70007578,2050.2,2049.7,1.22067972]
[1771037543584,0.48068052,2050.2,2049.7,1.22067972]
[1771037544188,1.70007854,2050.2,2049.7,1.22067972]
[1771037544487,0.48068052,2050.2,2049.7,1.22067972]
[1771037545704,1.70007723,2050.2,2049.7,1.22067972]
[1771037547408,0.48068052,2050.2,2049.7,1.22067972]
[1771037547612,1.7000765,2050.2,2049.7,1.22067972]
[1771037552512,0.48782583,2050.1,2049.7,0.001]
[1771037555708,0.48782583,2049.9,2049.7,0.001]
[1771037560708,1.70739809,2049.9,2049.7,0.001]
[1771037562311,0.45527819,2049.8,2049.7,0.001]
[1771037563549,1.67490937,2049.8,2049.7,0.001]
[1771037563715,1.67490937,2049.8,2049.5,0.001]
[1771037563716,0.45527819,2049.7,2049.5,0.001]
[1771037565438,1.67500193,2049.7,2049.5,0.001]
[1771037566514,0.45527819,2049.7,2049.5,0.001]
[1771037566944,1.67496969,2049.7,2049.5,0.001]
[1771037568433,0.45527819,2049.6,2049.5,0.001]
[1771037570425,1.67495362,2049.8,2049.5,0.001]
[1771037570745,1.67491499,2049.8,2049.5,0.001]
[1771037573623,0.45527819,2049.8,2049.5,0.001]
[1771037575270,1.67491092,2049.8,2049.5,0.001]
[1771037577242,2.90844624,2049.7,2049.5,0.001]
[1771037577446,1.67491092,2049.8,2049.5,0.001]
[1771037577648,2.90846314,2049.7,2049.5,0.001]
[1771037577843,1.67491092,2049.8,2049.5,0.001]
[1771037582780,3.42061463,2049.9,2049.5,0.001]
[1771037583801,1.21961463,2049.9,2049.5,0.001]
[1771037592202,1.67548612,2049.9,2049.5,0.001]
[1771037595299,1.22057424,2050.1,2049.5,0.43569392]
[1771037595499,0.45587149,2050.0,2049.5,0.001]
[1771037596389,0.45587149,2049.8,2049.5,0.001]
[1771037600607,1.67550515,2049.8,2049.5,0.001]
[1771037601615,0.45587149,2049.8,2049.5,0.001]
[1771037604115,5.33413999,2050.0,2049.5,0.001]
[1771037604284,0.45587149,2049.9,2049.5,0.001]
[1771037609987,1.67546234,2049.9,2049.5,0.001]
[1771037610205,1.21959085,2049.9,2049.5,0.001]
[1771037612212,0.0011,2050.1,2049.5,0.001]
[1771037612399,0.49435265,2050.0,2049.5,0.001]
[1771037613520,0.0011,2050.1,2049.5,0.43569392]
[1771037613828,0.49545265,2050.1,2049.5,0.43569392]
[1771037618633,1.71492667,2050.1,2049.6,1.21975019]
[1771037623325,1.22057402,2050.1,2049.6,1.65444411]
[1771037624532,1.22057402,2050.1,2049.5,0.001]
[1771037624749,1.71464001,2050.1,2049.5,0.001]
[1771037624907,0.49406599,2050.0,2049.5,0.001]
[1771037629740,0.49406599,2050.0,2049.5,1.2208097]
[1771037631915,1.71358399,2050.0,2049.5,1.2208097]
[1771037651936,0.0011,2050.1,2049.6,0.43469392]
[1771037654770,0.0011,2050.1,2049.7,1.21969068]
[1771037657566,0.0011,2050.1,2049.8,0.43469392]
[1771037658066,0.0011,2050.1,2049.8,2.17869392]
[1771037660795,0.0011,2050.1,2049.9,1.21957168]
[1771037662898,0.0011,2050.2,2049.9,1.6542656]
[1771037663194,0.0011,2050.2,2049.9,1.21957168]
[1771037664194,0.0011,2050.2,2049.9,1.6542656]
[1771037666483,0.0011,2050.3,2049.9,1.6542656]
[1771037668197,0.0011,2050.3,2049.9,1.21957168]
[1771037671301,0.4814675,2050.3,2049.8,2.96360731]
[1771037672374,0.0011,2050.3,2049.8,2.96360731]
[1771037672674,0.0011,2050.3,2050.0,0.43469392]
[1771037672874,0.0011,2050.3,2050.1,1.758]
[1771037674406,0.0011,2050.4,2050.1,1.758]
[1771037674584,0.0011,2050.4,2050.2,1.21939322]
[1771037676788,0.4814675,2050.4,2050.1,2.97742557]
[1771037676990,0.4814675,2050.4,2049.6,0.001]
[1771037677209,0.4803675,2050.3,2049.7,0.43469392]
[1771037677390,0.4803675,2050.3,2049.8,1.765]
[1771037677983,0.4803675,2050.3,2049.8,8.4359864]
[1771037678213,0.0011,2050.4,2049.8,8.87068032]
[1771037678412,0.49549057,2050.4,2049.8,8.87068032]
[1771037679317,0.49549057,2050.4,2049.9,1.21957168]
[1771037682009,0.48877111,2050.4,2049.9,1.21957168]
[1771037690624,0.0011,2050.5,2050.1,0.44031338]
[1771037690921,0.0011,2050.5,2050.2,1.783]
[1771037692404,0.0011,2050.5,2050.3,1.21933375]
[1771037695424,0.0011,2050.6,2050.3,1.21933375]
[1771037696900,0.0011,2050.9,2050.5,6.66282885]
[1771037697125,0.0011,2050.9,2050.6,1.793]
[1771037697308,0.0011,2051.0,2050.6,1.793]
[1771037697509,0.0011,2051.3,2050.9,6.66282885]
[1771037697709,0.0011,2051.3,2051.0,1.793]
[1771037697924,0.49549057,2051.3,2051.0,1.793]
[1771037698537,0.0011,2051.6,2051.1,6.66282885]
[1771037698829,0.49549057,2051.6,2051.2,1.21879875]
[1771037699003,0.49549057,2051.6,2051.3,1.794]
[1771037700936,0.46445497,2051.5,2051.3,1.794]
[1771037704726,0.0011,2051.6,2051.3,3.0127348]
[1771037705338,0.46555497,2051.6,2051.3,3.0127348]
[1771037706540,0.46555497,2051.6,2051.3,1.794]
[1771037710348,0.46555497,2051.6,2051.3,3.01271054]
[1771037710524,0.0011,2051.6,2051.3,3.01271054]
[1771037717852,0.46555497,2051.6,2051.3,3.01271054]
[1771037723567,0.46445497,2051.5,2051.0,0.001]
[1771037723772,0.46445497,2051.5,2051.1,1.82]
[1771037726081,0.46445497,2051.5,2051.1,3.03883637]
[1771037726379,0.0011,2051.6,2051.1,3.03883637]
[1771037726743,0.46555497,2051.6,2051.1,3.03883637]
[1771037728854,0.0011,2051.6,2051.1,3.03883637]
[1771037729250,0.0011,2051.6,2051.1,10.18876328]
[1771037735487,0.0011,2051.6,2051.2,0.48511217]
[1771037736392,0.0011,2051.6,2051.1,9.70166522]
[1771037737591,0.46891279,2051.6,2051.1,1.21883637]
[1771037737804,0.46891279,2051.6,2051.2,1.84]
[1771037741003,0.46891279,2051.6,2051.2,3.05878881]
[1771037741408,0.46756892,2051.6,2051.2,3.05878881]
[1771037741701,0.46622505,2051.6,2051.2,3.05878881]
[1771037753812,0.0011,2051.7,2051.2,3.05878881]
[1771037754614,0.0011,2051.7,2051.2,3.51242201]
[1771037756415,0.49204897,2051.7,2051.2,3.05878881]
[1771037758820,1.71055492,2051.7,2051.2,3.05878881]
[1771037760125,0.49204897,2051.7,2051.2,3.05878881]
[1771037763225,1.71055376,2051.7,2051.2,3.05878881]
[1771037765235,0.0011,2051.7,2051.2,3.05878881]
[1771037765431,0.0011,2052.0,2051.5,7.11191557]
[1771037765629,0.0011,2052.0,2051.6,1.862]
[1771037766509,1.21921865,2052.4,2051.7,0.45297841]
[1771037766708,1.67459623,2052.4,2051.7,0.45297841]
[1771037767399,1.67459623,2052.4,2051.8,1.21844234]
[1771037767603,0.0011,2052.0,2051.8,1.21844234]
[1771037768125,0.0011,2052.0,2051.7,1.67143854]
[1771037768329,0.0011,2052.0,2051.6,1.862]
[1771037768629,0.45647758,2052.0,2051.5,1.864]
[1771037769508,1.21838296,2051.9,2051.5,1.864]
[1771037769708,0.45537758,2051.8,2051.2,1.864]
[1771037770114,0.45537758,2051.8,2051.2,2.31697841]
[1771037770314,1.21838296,2051.9,2051.3,0.45297841]
[1771037770830,1.67483941,2052.0,2051.3,0.45297841]
[1771037771004,0.45647758,2052.0,2051.4,0.45297841]
[1771037771208,0.0011,2052.0,2051.4,0.45297841]
[1771037771836,0.0011,2052.0,2051.5,1.67159893]
[1771037776529,0.0011,2052.0,2051.4,4.87448208]
[1771037776841,0.0011,2052.0,2051.4,5.32746049]
[1771037777328,0.45647758,2052.0,2051.2,1.67173385]
[1771037777529,0.45647758,2052.0,2051.3,1.869]
[1771037779319,0.45537758,2051.9,2051.4,1.21867992]
[1771037779916,0.45537758,2051.9,2051.3,3.54067495]
[1771037780118,0.45537758,2051.9,2051.3,2.32197841]
[1771037780843,0.45537758,2051.9,2051.3,3.5407174]
[1771037781549,1.67380895,2051.9,2051.3,3.5407174]
[1771037784629,1.67380895,2051.9,2051.3,2.32197841]
[1771037784957,0.45537758,2051.8,2051.2,0.001]
[1771037787262,0.45537758,2051.6,2051.2,0.001]
[1771037789261,0.45537758,2051.5,2051.2,0.001]
[1771037792164,0.45537758,2051.5,2050.9,5.32979485]
[1771037792165,0.49661702,2051.4,2050.9,0.001]
[1771037794242,0.49661702,2051.2,2050.9,0.001]
[1771037796249,0.49661702,2051.0,2050.9,0.001]
[1771037802077,1.71553462,2051.0,2050.9,0.001]
[1771037803478,1.2189176,2051.0,2050.9,0.001]
[1771037804283,4.87537553,2051.2,2050.9,0.001]
[1771037805292,5.36535546,2051.2,2050.9,0.001]
[1771037807193,3.36489875,2051.3,2050.9,0.001]
[1771037807194,3.37386624,2051.3,2050.9,0.001]
[1771037809994,3.86384617,2051.3,2050.9,0.001]
[1771037816499,3.37386624,2051.3,2050.9,0.001]
[1771037818494,3.86384617,2051.3,2050.9,0.001]
[1771037819485,0.48997993,2051.2,2050.9,0.001]
[1771037820412,0.46997993,2051.2,2050.9,0.001]
[1771037821301,0.46997993,2051.2,2050.7,0.001]
[1771037821302,0.49475767,2051.1,2050.7,0.001]
[1771037821700,1.21897703,2050.9,2050.7,0.001]
[1771037822407,2.91570514,2050.8,2050.7,0.001]
[1771037822818,1.21892769,2051.0,2050.7,0.001]
[1771037823810,4.87543304,2051.1,2050.7,0.001]
[1771037826533,5.37019071,2051.1,2050.7,0.001]
[1771037828432,0.49475767,2051.0,2050.7,0.001]
[1771037828804,0.49475767,2050.9,2050.3,0.001]
[1771037829002,2.174,2051.0,2050.4,0.47300704]
[1771037829532,2.66875767,2051.0,2050.4,0.47300704]
[1771037829915,2.66875767,2051.0,2050.4,0.47400704]
[1771037830415,2.174,2051.0,2050.4,0.47400704]
[1771037830831,1.21897703,2050.9,2050.4,0.47400704]
[1771037833834,1.21897703,2050.9,2050.5,0.47300704]
[1771037835000,3.39296555,2051.0,2050.5,0.47300704]
[1771037835621,1.21896555,2051.0,2050.5,0.47300704]
[1771037835826,4.87521457,2051.2,2050.6,0.47300704]
[1771037842248,5.36997224,2051.2,2050.6,0.47300704]
[1771037842450,0.49475767,2051.1,2050.4,0.47400704]
[1771037843553,1.2189176,2051.0,2050.4,1.22027238]
[1771037843749,1.2189176,2051.0,2050.5,0.47300704]
[1771037853661,1.68850715,2051.0,2050.4,0.001]
[1771037853959,1.2189176,2051.0,2050.5,0.47247397]
[1771037863673,4.8756704,2051.1,2050.5,1.2192148]
[1771037863887,4.8756704,2051.1,2050.6,0.45976828]
[1771037864181,1.21885817,2051.1,2050.6,0.45976828]
[1771037865420,1.21884048,2051.2,2050.6,0.45976828]
[1771037866679,1.21884048,2051.2,2050.7,0.45976828]
[1771037870768,0.0011,2051.3,2050.8,0.45976828]
[1771037870969,1.21986275,2051.3,2050.8,0.45976828]
[1771037871168,1.67429531,2051.3,2050.7,1.21909333]
[1771037871477,1.67429531,2051.3,2050.7,1.67886161]
[1771037871874,1.21986275,2051.3,2050.7,1.67886161]
[1771037874772,1.21986275,2051.3,2050.8,0.45976828]
[1771037876507,1.21986275,2051.3,2050.8,1.67878889]
[1771037877982,0.0011,2051.3,2050.9,0.45976828]
[1771037878188,0.0011,2051.3,2050.9,1.21896245]
[1771037878399,0.0011,2051.3,2051.0,0.45976828]
[1771037880478,0.0011,2051.3,2051.1,1.67862645]
[1771037882612,0.0011,2051.3,2051.2,0.48582037]
[1771037882778,0.0011,2051.4,2051.2,0.48582037]
[1771037884701,0.0011,2051.4,2051.1,1.849]
[1771037885323,0.0011,2051.4,2051.1,3.06785568]
[1771037886612,0.0011,2051.4,2051.1,3.07085568]
[1771037887637,0.0011,2051.4,2051.2,0.48582037]
[1771037889257,0.0011,2051.4,2051.2,1.70460317]
[1771037890227,0.0011,2051.5,2051.3,0.48582037]
[1771037892546,0.0011,2051.5,2051.3,1.70454146]
[1771037893541,0.0011,2051.5,2051.3,0.48582037]
[1771037893853,0.0011,2051.5,2051.2,1.21875294]
[1771037894555,0.0011,2051.5,2051.2,1.70457331]
[1771037901834,0.0011,2051.5,2051.3,0.48582037]
[1771037902148,0.0011,2051.6,2051.3,0.48582037]
[1771037903031,0.0011,2051.6,2051.4,3.09367992]
[1771037903865,0.0011,2051.6,2051.4,3.57950029]
[1771037914478,0.0011,2051.6,2051.4,3.09367992]
[1771037919763,0.0011,2051.6,2051.4,1.875]
[1771037920070,0.0011,2051.6,2051.4,3.09367868]
[1771037923698,0.0011,2051.6,2051.4,1.875]
[1771037923868,0.46243067,2051.6,2051.4,1.875]
[1771037924068,0.46243067,2051.6,2051.3,1.911]
[1771037924069,0.4610869,2051.6,2051.3,1.911]
[1771037924370,0.45974313,2051.6,2051.3,1.911]
[1771037926492,1.21962174,2051.7,2051.3,1.911]
[1771037926697,0.0011,2051.7,2051.3,1.911]
[1771037927203,0.46133067,2051.6,2051.3,1.911]
[1771037928502,0.0011,2051.7,2051.3,1.911]
[1771037928705,0.0011,2051.7,2051.2,1.21879834]
[1771037929001,0.46243067,2051.7,2051.2,1.21879834]
[1771037931001,1.68094307,2051.7,2051.2,1.21879834]
[1771037931608,0.46133067,2051.6,2051.2,1.21879834]
[1771037931783,0.46133067,2051.6,2051.1,3.13181205]
[1771037934413,0.0011,2051.7,2051.2,0.46647628]
[1771037934797,0.0011,2051.7,2051.3,0.46647628]
[1771037934996,0.0011,2052.2,2051.6,0.46647628]
[1771037935202,0.0011,2052.2,2051.4,14.41358]
[1771037935203,1.21805889,2052.5,2051.7,1.915]
[1771037935523,0.46133067,2052.3,2051.4,0.46647628]
[1771037935826,0.46133067,2052.3,2051.5,2.38247628]
[1771037935998,0.46133067,2052.3,2051.6,0.46647628]
[1771037937226,1.67952034,2052.3,2051.6,1.68499236]
[1771037937523,0.0011,2052.0,2051.6,1.68499236]
[1771037940722,0.0011,2052.0,2051.5,1.21858318]
[1771037940931,0.0011,2052.0,2051.5,3.13458318]
[1771037941723,0.47995715,2052.0,2051.5,1.916]
[1771037944031,1.69829704,2052.0,2051.5,1.916]
[1771037944632,1.69829704,2052.0,2051.4,1.21865072]
[1771037951636,0.47885715,2051.9,2051.4,1.21865072]
[1771037952614,0.47885715,2051.9,2051.2,4.48981846]
[1771037953523,0.0011,2052.0,2051.4,1.6947436]
[1771037954243,0.47995715,2052.0,2051.3,1.2186967]
[1771037955011,0.0011,2052.0,2051.4,0.47606368]
[1771037955214,0.47995715,2052.0,2051.3,1.2186967]
[1771037955614,0.47885715,2051.8,2051.3,1.2186967]
[1771037955836,0.47885715,2051.8,2051.2,3.13577292]
[1771037956246,0.47885715,2051.8,2051.2,1.21877292]
[1771037956746,0.47885715,2051.8,2051.2,1.6948366]
[1771037957552,7.1357712,2051.4,2050.9,0.001]
[1771037957762,1.69757932,2051.4,2050.9,0.001]
[1771037958956,1.21872217,2051.4,2050.9,0.001]
[1771037962770,1.21866659,2051.5,2050.9,0.47706368]
[1771037965185,0.47885715,2051.6,2050.9,0.47706368]
[1771037965357,1.2185762,2051.6,2051.0,0.47606368]
[1771037965676,1.69743335,2051.6,2051.0,0.47606368]
[1771037965856,0.47885715,2051.5,2050.9,1.69598377]
[1771037967479,1.69750308,2051.5,2050.9,1.69598377]
[1771037968657,4.87424586,2051.6,2051.0,0.47606368]
[1771037968857,1.21856112,2051.6,2051.0,0.47606368]
[1771037970272,1.69741827,2051.6,2050.9,1.69598377]
[1771037974887,1.69741827,2051.6,2051.0,0.45988674]
[1771037979087,1.21856112,2051.6,2051.0,1.67879067]
[1771037979268,1.21856112,2051.6,2051.1,0.46747788]
[1771037982200,2.91004753,2051.5,2051.1,0.46747788]
[1771037982367,1.21856112,2051.6,2051.1,0.46747788]
[1771037982693,1.21856112,2051.6,2051.0,0.46747788]
[1771037982694,2.91004833,2051.5,2051.0,0.46747788]
[1771037982865,1.21856112,2051.6,2051.0,0.46747788]
[1771037983061,2.91003605,2051.5,2051.0,0.46747788]
[1771037983292,1.21856112,2051.6,2051.0,0.46747788]
[1771037983461,2.91054649,2051.5,2051.0,0.46747788]
[1771037983662,1.21856112,2051.6,2051.0,0.46747788]
[1771037983877,2.91054183,2051.5,2051.0,0.46747788]
[1771037984078,1.21856112,2051.6,2051.0,0.46747788]
[1771037984279,2.9114029,2051.5,2051.0,0.46747788]
[1771037984496,1.21856112,2051.6,2051.0,1.68637447]
[1771037984698,2.91101654,2051.5,2051.0,1.68637447]
[1771037984997,1.21856112,2051.6,2051.0,1.68637447]
[1771037985294,2.9108844,2051.5,2051.0,1.68637447]
[1771037985493,1.21856112,2051.6,2051.0,1.68637447]
[1771037985799,2.91189277,2051.5,2051.0,1.68637447]
[1771037985981,3.36154825,2051.7,2051.1,0.46747788]
[1771037988478,0.45440801,2051.6,2051.0,0.46747788]
[1771037989200,3.81595626,2051.7,2051.0,0.46747788]
[1771037990109,3.36154825,2051.7,2051.0,0.46747788]
[1771037990701,3.36154825,2051.7,2051.1,1.68633605]
[1771037991705,0.45440801,2051.6,2050.9,1.68745433]
[1771037991997,0.45440801,2051.4,2050.7,0.001]
[1771037992197,0.45440801,2051.2,2050.7,0.001]
[1771037992397,0.45440801,2051.0,2050.7,0.001]
[1771037992603,2.59840801,2051.2,2050.7,0.001]
[1771037992908,1.2189176,2051.0,2050.7,0.001]
[1771037995189,3.36283728,2051.2,2050.7,0.46847788]
[1771037995496,2.90965714,2051.1,2050.7,0.46847788]
[1771037995696,3.36283728,2051.2,2050.7,0.46847788]
[1771037995891,2.90965346,2051.1,2050.7,0.46847788]
[1771037996208,1.21883728,2051.2,2050.7,0.46847788]
[1771037998203,4.87404148,2051.7,2050.8,0.46747788]
[1771037998371,0.45440801,2051.5,2050.8,0.46747788]
[1771037998575,7.02004148,2051.7,2050.8,0.46747788]
[1771037998576,3.36380198,2051.4,2050.8,0.46747788]
[1771037998907,0.45440801,2051.4,2050.8,0.46747788]
[1771038000388,1.67314734,2051.3,2050.7,1.68757017]
[1771038001102,1.67314734,2051.3,2050.7,0.46847788]
[1771038001304,1.21873933,2051.3,2050.7,0.001]
[1771038001491,0.4792486,2051.2,2050.7,0.001]
[1771038002106,2.90885391,2051.1,2050.7,0.001]
[1771038002290,1.69821867,2051.0,2050.7,0.001]
[1771038002807,0.4792486,2051.5,2050.8,0.46494104]
[1771038003182,1.21856112,2051.6,2050.8,0.46494104]
[1771038003384,0.4792486,2051.8,2051.0,0.46494104]
[1771038003683,2.90900145,2051.7,2051.0,0.46494104]
[1771038003878,1.21844325,2051.8,2051.0,0.46494104]
[1771038004090,2.90907255,2051.7,2051.0,0.46494104]
[1771038004285,1.21856112,2051.6,2051.0,0.46494104]
[1771038004497,1.69780972,2051.6,2050.8,1.68394428]
[1771038004699,0.4792486,2051.5,2050.8,1.68397457]
[1771038005300,0.4792486,2051.5,2050.8,0.46494104]
[1771038005509,0.4792486,2051.5,2050.7,1.22008458]
[1771038005801,0.4792486,2051.5,2050.7,1.68502562]
[1771038006594,1.21867992,2051.4,2050.7,1.68502562]
[1771038008605,0.4792486,2051.3,2050.7,1.22008458]
[1771038008821,0.4792486,2051.3,2050.7,0.001]
[1771038008822,0.4792486,2051.1,2050.7,0.001]
[1771038009143,0.4792486,2051.3,2050.7,0.001]
[1771038009289,0.4792486,2051.3,2050.7,0.46594104]
[1771038009506,0.4792486,2051.1,2050.7,0.001]
[1771038009930,3.38680964,2051.0,2050.7,0.001]
[1771038010135,0.4792486,2051.0,2050.7,0.001]
[1771038011136,1.21897703,2050.9,2050.7,0.001]
[1771038011338,1.21896354,2051.0,2050.7,0.001]
[1771038011947,1.21879875,2051.2,2050.7,0.46594104]
[1771038013033,3.36170424,2051.4,2050.9,0.46494104]
[1771038013217,1.21844234,2051.8,2050.9,0.46494104]
[1771038013415,3.38620413,2051.7,2050.9,0.46494104]
[1771038013614,2.90695553,2051.6,2050.9,0.46494104]
[1771038013928,2.90695553,2051.5,2050.9,0.46494104]
[1771038014127,0.4792486,2051.7,2050.9,0.46494104]
[1771038015232,1.21856112,2051.6,2050.9,1.68389769]
[1771038016049,1.21854138,2051.7,2051.0,0.46494104]
[1771038017624,1.21854138,2051.7,2051.0,1.68381408]
[1771038017821,0.4792486,2051.6,2050.8,1.68392706]
[1771038019238,0.4792486,2051.6,2050.9,0.46494104]
[1771038020248,1.21862052,2051.5,2050.9,1.68387913]
[1771038021420,1.2185484,2051.7,2051.0,0.46494104]
[1771038023455,0.0011,2051.9,2051.2,0.46494104]
[1771038025156,0.4792486,2051.8,2050.8,5.03900748]
[1771038025454,0.4792486,2051.8,2050.8,1.68394852]
[1771038025753,0.4792486,2051.6,2050.8,0.46494104]
[1771038026730,0.4792486,2051.6,2050.7,1.22008956]
[1771038027240,0.4792486,2051.6,2050.8,0.46494104]
[1771038029638,1.21862052,2051.5,2050.9,1.21897703]
[1771038029939,4.87408723,2051.7,2051.0,0.46494104]
[1771038031264,5.36357358,2051.7,2051.0,0.46494104]
[1771038032067,5.36357358,2051.7,2051.0,1.68384131]
[1771038033070,1.70798808,2051.7,2051.0,1.68384131]
[1771038034441,7.50012555,2051.9,2051.1,0.48613081]
[1771038035577,0.48948635,2051.8,2051.1,0.48613081]
[1771038036478,1.21850173,2051.7,2051.2,1.21879875]
[1771038042269,1.21850173,2051.7,2051.1,1.70494133]
[1771038043346,1.21850173,2051.7,2051.2,0.47502731]
[1771038044780,1.21850173,2051.7,2051.2,1.69379189]
[1771038045972,1.68061113,2051.8,2051.2,1.69379189]
[1771038047583,3.35552753,2051.9,2051.3,0.47502731]
[1771038048286,0.0011,2051.9,2051.3,0.47502731]
[1771038049554,0.0011,2051.9,2051.5,0.47502731]
[1771038056963,0.0011,2051.9,2051.7,0.47502731]
[1771038059992,0.0011,2051.9,2051.7,1.21848918]
[1771038060199,0.0011,2051.9,2051.5,1.21857576]
[1771038060369,0.0011,2051.9,2051.6,0.47502731]
[1771038060765,0.0011,2051.9,2051.5,1.21857576]
[1771038060970,0.0011,2051.9,2051.4,1.69365813]
[1771038061889,0.48014104,2051.9,2051.4,1.21863082]
[1771038062799,0.48014104,2051.9,2051.3,5.34792785]
[1771038074212,0.0011,2051.9,2051.3,5.34792785]
[1771038076328,1.21948296,2051.9,2051.3,1.69183909]
[1771038076488,1.698524,2051.9,2051.3,1.69183909]
[1771038077617,0.48014104,2051.9,2051.3,1.69183909]
[1771038078699,0.0011,2051.9,2051.3,1.69183909]
[1771038082202,2.915762,2051.8,2051.3,1.69183909]
[1771038082529,0.0011,2051.9,2051.3,1.69183909]
[1771038087229,2.91659028,2051.8,2051.3,1.69183909]
[1771038087428,0.0011,2051.9,2051.3,1.69183909]
[1771038087728,2.91660875,2051.8,2051.3,1.69183909]
[1771038087929,0.0011,2051.9,2051.3,1.69183909]
[1771038088131,2.91660829,2051.8,2051.3,1.69183909]
[1771038088327,0.0011,2051.9,2051.3,1.69183909]
[1771038088533,2.91713107,2051.8,2051.3,1.69183909]
[1771038088722,0.0011,2051.9,2051.3,1.69183909]
[1771038088924,2.91713191,2051.8,2051.3,1.69183909]
[1771038089123,0.0011,2051.9,2051.3,1.69183909]
[1771038089337,0.4810826,2051.8,2051.4,0.48319767]
[1771038089637,0.0011,2051.9,2051.4,0.48319767]
[1771038091436,0.0011,2051.9,2051.6,0.48932124]
[1771038093440,0.0011,2051.9,2051.7,1.21850173]
[1771038094644,0.0011,2051.9,2051.6,1.7078353]
[1771038095744,0.0011,2051.9,2051.4,0.48932124]
[1771038095947,0.0011,2051.9,2051.5,1.92]
[1771038099352,0.0011,2051.9,2051.5,3.13856274]
[1771038101957,0.0011,2051.9,2051.5,1.21856274]
[1771038107733,0.45940293,2051.9,2051.2,0.46981579]